bitfinex/quotes_ETHUSD_20230105
["timestamp","ask_amount","ask_price","bid_price","bid_amount"]
[1672944919930,11.05168007,1251.8,1251.5,27.83155037]
[1672944920166,10.98568007,1251.8,1251.5,35.82196037]
[1672944920374,2.99707007,1251.7,1251.5,35.82196037]
[1672944921017,2.99707007,1251.7,1251.5,27.83155037]
[1672944923752,14.87516828,1251.8,1251.5,35.82196037]
[1672944923907,2.99707007,1251.7,1251.5,35.82196037]
[1672944927206,2.99707007,1251.7,1251.5,35.81935675]
[1672944929168,3.06307007,1251.8,1251.5,35.81935675]
[1672944929349,2.99707007,1251.8,1251.5,35.81935675]
[1672944930489,2.99707007,1251.7,1251.5,35.81935675]
[1672944930699,2.99707007,1251.7,1251.5,40.20438146]
[1672944931529,3.06307007,1251.8,1251.5,48.19479146]
[1672944931738,2.99707007,1251.8,1251.5,48.67210372]
[1672944932204,2.99907007,1251.8,1251.5,48.66910372]
[1672944932365,2.99707007,1251.8,1251.5,48.67210372]
[1672944934976,10.73427007,1251.9,1251.5,52.66125323]
[1672944935202,4.19561198,1252.0,1251.5,52.66125323]
[1672944935203,2.99707007,1251.8,1251.5,52.66125323]
[1672944935420,2.99707007,1251.8,1251.5,62.42055323]
[1672944935620,3.04707007,1251.8,1251.5,62.42055323]
[1672944935823,2.99707007,1251.8,1251.5,62.42055323]
[1672944938604,3.06307007,1251.9,1251.6,5.97240559]
[1672944938897,3.06307007,1252.0,1251.7,35.94566951]
[1672944939061,2.99707007,1252.0,1251.7,48.10648177]
[1672944939314,2.99707007,1252.0,1251.8,3.97731226]
[1672944939493,3.06307007,1252.1,1251.9,31.9514]
[1672944939726,2.99707007,1252.1,1251.9,32.52771226]
[1672944941393,3.3103061,1252.2,1251.9,36.51686177]
[1672944941610,3.2443061,1252.2,1251.9,36.51686177]
[1672944941802,3.2443061,1252.2,1251.9,40.90188648]
[1672944941803,2.99707007,1252.1,1251.9,40.90188648]
[1672944943475,0.002,1252.1,1251.9,40.89888648]
[1672944943685,3.2443061,1252.2,1251.9,40.90188648]
[1672944944340,3.2443061,1252.2,1251.9,53.35438648]
[1672944946944,3.2463061,1252.2,1251.9,53.35138648]
[1672944947152,3.2443061,1252.2,1251.9,53.35438648]
[1672944947359,0.24723603,1252.2,1251.9,53.35438648]
[1672944947837,3.2443061,1252.2,1251.9,53.35438648]
[1672944948138,3.2943061,1252.2,1251.9,53.35438648]
[1672944948566,0.29723603,1252.2,1251.9,53.35438648]
[1672944948920,0.29723603,1252.2,1251.9,53.3513791]
[1672944950136,0.24723603,1252.2,1251.9,53.3513791]
[1672944951812,0.24723603,1252.2,1251.9,44.88621684]
[1672944952002,11.2303261,1252.2,1251.9,44.88621684]
[1672944952216,8.23325603,1252.2,1251.9,44.88621684]
[1672944952529,3.2443061,1252.2,1251.9,44.88621684]
[1672944953351,0.24723603,1252.2,1251.9,44.88621684]
[1672944953925,0.24723603,1252.2,1251.9,52.87406684]
[1672944954489,3.2443061,1252.2,1251.9,52.87406684]
[1672944956331,3.2443061,1252.2,1251.9,53.3513791]
[1672944956701,0.24723603,1252.2,1252.0,3.5]
[1672944956947,0.24723603,1252.2,1252.1,31.94632]
[1672944957171,0.24723603,1252.2,1252.1,32.04532]
[1672944958337,0.24723603,1252.2,1252.1,24.05874]
[1672944966426,0.29723603,1252.2,1252.1,24.05874]
[1672944966579,0.24723603,1252.2,1252.1,24.05874]
[1672944976116,3.2443061,1252.2,1252.1,24.05874]
[1672944980621,3.2443061,1252.2,1252.1,24.05672002]
[1672944980830,4.55922116,1252.2,1252.1,0.099]
[1672944981152,0.96300918,1252.2,1252.1,7.98658]
[1672944981385,0.96300918,1252.2,1252.1,8.08558]
[1672944981559,4.55922116,1252.2,1252.1,16.07216]
[1672944981770,4.55922116,1252.2,1252.1,8.08558]
[1672944982243,4.55922116,1252.2,1252.1,16.07216]
[1672944982457,4.55922116,1252.2,1252.1,8.08558]
[1672944982822,4.60922116,1252.2,1252.1,8.08558]
[1672944983033,4.55922116,1252.2,1252.1,8.08558]
[1672944983245,4.55922116,1252.2,1252.1,0.099]
[1672944983480,4.55922116,1252.2,1252.1,7.98658]
[1672944983698,4.55922116,1252.2,1252.1,8.08558]
[1672944984203,4.55922116,1252.2,1252.1,0.099]
[1672944984438,4.55922116,1252.2,1252.0,21.69269018]
[1672944984646,2.994242,1252.1,1252.0,17.21962]
[1672944984813,2.994242,1252.1,1252.0,0.099]
[1672944985022,2.994242,1252.1,1251.9,20.53905]
[1672944985274,2.994242,1252.1,1252.0,7.98722]
[1672944985436,2.994242,1252.1,1252.0,0.099]
[1672944985649,10.980822,1252.1,1251.9,20.539]
[1672944986071,10.980872,1252.1,1251.9,20.539]
[1672944986752,2.994242,1252.1,1251.9,20.539]
[1672944987018,2.994242,1252.1,1251.9,28.52685]
[1672944987498,2.994242,1252.1,1251.9,20.539]
[1672944988390,2.994242,1252.1,1251.9,36.5147]
[1672944991693,2.994242,1252.1,1251.9,28.52685]
[1672944992438,2.994242,1252.1,1251.9,36.5147]
[1672944992842,10.980852,1252.1,1251.9,28.52685]
[1672944993602,2.994242,1252.1,1251.9,28.52685]
[1672944993955,2.994242,1252.0,1251.9,28.52685]
[1672944994232,2.994242,1252.0,1251.9,15.5515]
[1672944994962,2.994242,1252.0,1251.9,23.53935]
[1672944995500,2.994242,1252.0,1251.9,31.5272]
[1672944995660,2.994242,1252.0,1251.9,23.53935]
[1672944996184,11.046892,1252.1,1251.9,23.53935]
[1672944996396,14.39937412,1252.1,1251.9,23.53935]
[1672944996835,6.41272412,1252.1,1251.9,39.51505]
[1672944997320,9.51397,1252.1,1251.9,31.5272]
[1672944997536,1.52736,1252.1,1251.9,31.5272]
[1672944997835,1.52736,1252.1,1251.9,23.53935]
[1672944998182,9.51408,1252.1,1251.9,23.53935]
[1672944998368,9.51408,1252.1,1251.9,23.53921]
[1672944998579,1.52736,1252.1,1251.9,31.52706]
[1672944999373,9.51397,1252.1,1251.9,23.53921]
[1672945000366,17.50058,1252.1,1251.9,15.5515]
[1672945001979,27.55604198,1252.1,1251.9,15.5515]
[1672945002358,34.1848012,1252.2,1251.9,31.52712]
[1672945002613,34.1188012,1252.2,1251.9,39.51497]
[1672945004434,2.99267833,1252.1,1251.9,31.52712]
[1672945004651,13.89180428,1252.1,1251.9,31.52712]
[1672945004805,10.97929833,1252.1,1251.9,31.52712]
[1672945005015,2.99267833,1252.0,1251.9,31.52712]
[1672945006484,2.99267833,1252.0,1251.9,15.5515]
[1672945007531,18.96711833,1252.0,1251.9,15.5515]
[1672945008007,10.97989833,1252.0,1251.9,15.5515]
[1672945008163,2.99267833,1252.0,1251.9,15.5515]
[1672945009319,10.97989833,1252.0,1251.9,15.5515]
[1672945009546,2.99267833,1252.0,1251.9,15.5515]
[1672945009755,10.97989833,1252.0,1251.9,15.5515]
[1672945010203,2.99267833,1252.0,1251.9,15.5515]
[1672945010856,2.99267833,1252.0,1251.9,23.53935]
[1672945013069,2.99267833,1252.0,1251.9,31.5272]
[1672945013222,3.05867833,1252.1,1251.9,44.39786618]
[1672945013434,2.99267833,1252.1,1251.9,44.39786618]
[1672945018500,2.99267833,1252.1,1251.9,52.38571618]
[1672945018939,11.63381436,1252.2,1251.9,52.38571618]
[1672945019179,2.99267833,1252.1,1251.9,52.38571618]
[1672945021904,11.63381436,1252.2,1251.9,52.38571618]
[1672945022101,11.56781436,1252.2,1251.9,52.38240863]
[1672945022700,2.99267833,1252.1,1251.9,52.38240863]
[1672945022908,11.63381436,1252.2,1251.9,52.38240863]
[1672945023151,11.56781436,1252.2,1251.9,52.38240863]
[1672945024954,11.56781436,1252.2,1251.9,52.85972089]
[1672945025171,11.56781436,1252.2,1251.9,56.8488704]
[1672945029298,11.56781436,1252.2,1251.9,56.85607939]
[1672945030130,11.5645875,1252.2,1251.9,56.85607939]
[1672945030526,2.99267833,1252.1,1251.9,56.85607939]
[1672945033549,11.6305875,1252.2,1251.9,56.85607939]
[1672945033852,11.5645875,1252.2,1251.9,56.85607939]
[1672945034800,2.99267833,1252.1,1251.9,56.85607939]
[1672945034959,11.6305875,1252.2,1251.9,56.85607939]
[1672945035172,11.5645875,1252.2,1251.9,56.85607939]
[1672945035748,2.99267833,1252.1,1251.9,56.85607939]
[1672945047003,11.6305875,1252.2,1251.9,56.85607939]
[1672945047213,11.5645875,1252.2,1251.9,56.85607939]
[1672945048416,2.99267833,1252.1,1251.9,56.85607939]
[1672945049252,11.6305875,1252.2,1251.9,56.85607939]
[1672945049392,11.5645875,1252.2,1251.9,56.85607939]
[1672945051277,2.99267833,1252.1,1251.9,56.85607939]
[1672945053915,2.99267833,1252.1,1251.9,56.8521572]
[1672945054964,2.99267833,1252.1,1252.0,1.81405612]
[1672945055281,2.99267833,1252.1,1252.0,33.76293612]
[1672945055535,2.99267833,1252.1,1252.0,33.86193612]
[1672945077586,2.99267833,1252.1,1252.0,33.85936044]
[1672945078794,2.996124,1252.1,1252.0,33.85936044]
[1672945082989,2.99606035,1252.1,1252.0,33.85936044]
[1672945091467,4.5190785,1252.1,1252.0,1.91048044]
[1672945091716,21.09239013,1252.1,1252.0,1.81148044]
[1672945092092,29.07897013,1252.1,1252.0,1.81148044]
[1672945092370,21.09239013,1252.1,1252.0,1.81148044]
[1672945093078,29.07897013,1252.1,1252.0,1.81148044]
[1672945093287,21.09239013,1252.1,1252.0,1.81148044]
[1672945093496,29.07897013,1252.1,1252.0,1.81148044]
[1672945093877,21.09239013,1252.1,1252.0,1.81148044]
[1672945094263,29.07897013,1252.1,1252.0,1.81148044]
[1672945095872,21.09239013,1252.1,1252.0,1.81148044]
[1672945097925,21.09239013,1252.1,1252.0,1.80882573]
[1672945100340,29.07897013,1252.1,1252.0,1.80882573]
[1672945100550,21.09239013,1252.1,1252.0,1.80882573]
[1672945100709,29.07897013,1252.1,1252.0,1.80882573]
[1672945100919,21.09239013,1252.1,1252.0,1.80882573]
[1672945101715,29.07897013,1252.1,1252.0,1.80882573]
[1672945101862,21.09239013,1252.1,1252.0,1.80882573]
[1672945102344,29.07897013,1252.1,1252.0,1.80882573]
[1672945102539,21.09239013,1252.1,1252.0,1.80882573]
[1672945103392,30.07248219,1252.1,1252.0,1.80882573]
[1672945103607,34.86261259,1252.1,1251.7,0.099]
[1672945103786,2.99370239,1251.8,1251.5,9.83142675]
[1672945103999,11.28163263,1251.8,1251.5,17.82179675]
[1672945104950,27.25868263,1251.8,1251.5,9.83142675]
[1672945105174,19.27012263,1251.8,1251.5,9.83142675]
[1672945106020,19.27012263,1251.8,1251.5,17.82177675]
[1672945106754,11.28156263,1251.8,1251.5,17.82177675]
[1672945107231,8.28786024,1251.8,1251.5,17.82177675]
[1672945107437,8.28786024,1251.8,1251.5,25.81218675]
[1672945108274,11.78786024,1251.8,1251.5,25.81218675]
[1672945108525,8.28786024,1251.8,1251.5,25.81218675]
[1672945108797,24.26484024,1251.8,1251.5,25.81218675]
[1672945109273,24.26484024,1251.8,1251.5,9.83142675]
[1672945109423,24.26484024,1251.8,1251.5,17.82172675]
[1672945110296,16.27635024,1251.8,1251.5,25.81213675]
[1672945110480,24.26484024,1251.8,1251.5,25.81213675]
[1672945110939,27.25854263,1251.8,1251.5,17.82172675]
[1672945111151,27.25854263,1251.8,1251.5,0.13682675]
[1672945111152,4.5848758,1251.7,1251.5,0.13682675]
[1672945111361,3.5,1251.6,1251.5,0.03782675]
[1672945111553,19.47954,1251.6,1251.5,0.03782675]
[1672945111744,7.98977,1251.6,1251.5,0.03782675]
[1672945111964,31.01102323,1251.7,1251.5,0.03782675]
[1672945112310,14.96617323,1251.7,1251.5,0.03782675]
[1672945112689,11.97247084,1251.7,1251.5,0.03782675]
[1672945113229,19.96187084,1251.7,1251.5,0.03782675]
[1672945114321,3.98319084,1251.7,1251.5,0.03782675]
[1672945114634,3.98319084,1251.7,1251.5,16.01863675]
[1672945114791,3.98319084,1251.7,1251.5,24.10804675]
[1672945115783,14.41807263,1251.8,1251.5,24.10804675]
[1672945115938,8.79337024,1251.8,1251.5,24.10804675]
[1672945116360,3.5,1251.7,1251.5,24.10804675]
[1672945116620,8.85937024,1251.8,1251.5,24.10804675]
[1672945116824,19.77561263,1251.8,1251.5,24.10804675]
[1672945117314,12.29337024,1251.8,1251.5,24.10804675]
[1672945118103,8.79337024,1251.8,1251.5,24.10804675]
[1672945118265,8.79337024,1251.8,1251.5,32.09845675]
[1672945119344,8.19387024,1251.8,1251.5,32.09845675]
[1672945119895,8.19587024,1251.8,1251.5,32.09545675]
[1672945120122,8.19387024,1251.8,1251.5,32.09845675]
[1672945120485,8.19387024,1251.8,1251.5,24.10804675]
[1672945120674,11.69387024,1251.8,1251.5,16.11763675]
[1672945121350,27.67087024,1251.8,1251.5,8.12722675]
[1672945121568,35.65937024,1251.8,1251.5,0.13682675]
[1672945121752,35.65937024,1251.8,1251.5,0.03782675]
[1672945121967,3.5,1251.7,1251.5,0.03782675]
[1672945122414,35.72537024,1251.8,1251.5,8.02807675]
[1672945122565,27.67087024,1251.8,1251.5,16.11748675]
[1672945122775,27.67287024,1251.8,1251.5,24.10489675]
[1672945122989,27.67087024,1251.8,1251.5,24.10789675]
[1672945123309,24.17087024,1251.8,1251.5,24.10789675]
[1672945123516,16.18237024,1251.8,1251.5,24.10789675]
[1672945123745,8.19387024,1251.8,1251.5,24.10531827]
[1672945125605,16.18248024,1251.8,1251.5,24.10531827]
[1672945127370,16.18248024,1251.8,1251.5,28.47442113]
[1672945127371,15.88311,1251.8,1251.5,28.47442113]
[1672945128644,0.05,1251.6,1251.5,28.47442113]
[1672945128859,15.88311,1251.8,1251.5,28.47442113]
[1672945129085,15.88311,1251.8,1251.5,24.10531827]
[1672945129912,18.87681239,1251.8,1251.5,24.10531827]
[1672945130428,26.86542239,1251.8,1251.5,8.12449827]
[1672945130648,34.85403239,1251.8,1251.5,0.13424827]
[1672945130792,3.5,1251.7,1251.5,0.03524827]
[1672945131004,15.97857,1251.7,1251.5,0.03524827]
[1672945131216,7.98914,1251.7,1251.5,0.03524827]
[1672945131424,18.67147524,1251.7,1251.5,8.02562827]
[1672945131673,18.67147524,1251.7,1251.5,8.12462827]
[1672945132576,10.68233524,1251.7,1251.5,8.12462827]
[1672945134120,2.69319524,1251.7,1251.5,16.11503827]
[1672945134318,10.68242524,1251.7,1251.5,8.12462827]
[1672945134477,10.68242524,1251.7,1251.5,0.13424827]
[1672945134841,10.68242524,1251.7,1251.5,0.03524827]
[1672945134998,29.65448763,1251.7,1251.5,0.03524827]
[1672945135465,26.66078524,1251.7,1251.5,0.03524827]
[1672945135832,18.67155524,1251.7,1251.5,0.03524827]
[1672945136301,18.67155524,1251.7,1251.5,8.02562827]
[1672945136480,10.68232524,1251.7,1251.5,8.12462827]
[1672945136688,10.68232524,1251.7,1251.5,0.13424827]
[1672945136905,10.68232524,1251.7,1251.5,0.03524827]
[1672945137346,21.66515763,1251.7,1251.5,0.03524827]
[1672945137515,29.65428763,1251.7,1251.5,0.03524827]
[1672945138209,21.66515763,1251.7,1251.5,0.03524827]
[1672945139197,21.66515763,1251.7,1251.5,8.02560827]
[1672945139407,13.67612763,1251.7,1251.5,8.12460827]
[1672945140830,5.68689763,1251.7,1251.5,16.11501827]
[1672945141042,5.68689763,1251.7,1251.5,8.12460827]
[1672945141253,13.67606763,1251.7,1251.5,8.12460827]
[1672945141624,13.67605763,1251.7,1251.5,8.12460827]
[1672945142409,5.68689763,1251.7,1251.5,16.11501827]
[1672945142601,2.99370239,1251.7,1251.5,16.11501827]
[1672945143003,2.99370239,1251.7,1251.5,24.10542827]
[1672945143563,2.99370239,1251.7,1251.5,16.11501827]
[1672945144310,2.99370239,1251.7,1251.5,24.10542827]
[1672945144873,2.99370239,1251.7,1251.5,32.09583827]
[1672945145075,2.99370239,1251.7,1251.5,36.51265636]
[1672945145312,7.9605,1251.8,1251.5,36.51265636]
[1672945145313,10.95420239,1251.8,1251.5,36.51265636]
[1672945145556,2.99370239,1251.7,1251.5,36.51265636]
[1672945145978,10.95420239,1251.8,1251.5,36.51265636]
[1672945146126,10.88820239,1251.8,1251.5,32.09583827]
[1672945146606,10.88820239,1251.8,1251.5,24.10542827]
[1672945147176,2.99370239,1251.8,1251.5,28.69030407]
[1672945147391,2.99370239,1251.8,1251.5,41.14717584]
[1672945147727,2.99370239,1251.8,1251.7,23.96739]
[1672945147951,3.05970239,1251.9,1251.7,28.11948853]
[1672945148132,3.05970239,1251.9,1251.7,20.13035853]
[1672945148133,2.99370239,1251.9,1251.7,20.13035853]
[1672945148552,2.69370239,1251.8,1251.7,20.13035853]
[1672945150056,2.69370239,1251.8,1251.7,28.11948853]
[1672945150265,2.69370239,1251.8,1251.7,20.13035853]
[1672945150499,2.69370239,1251.8,1251.7,28.11948853]
[1672945151223,0.066,1251.9,1251.7,28.11948853]
[1672945151440,19.26821286,1252.0,1251.7,28.11948853]
[1672945153226,27.25559286,1252.0,1251.7,20.13035853]
[1672945153438,27.25559286,1252.0,1251.7,28.11948853]
[1672945153821,3.59244286,1251.9,1251.7,28.11948853]
[1672945154247,19.33421286,1252.0,1251.7,28.11948853]
[1672945154459,19.26821286,1252.0,1251.7,28.11948853]
[1672945155434,2.99372069,1251.9,1251.7,28.11948853]
[1672945157436,2.99372069,1251.9,1251.7,20.13035853]
[1672945158326,2.99372069,1251.9,1251.7,28.11948853]
[1672945158789,2.99372069,1251.9,1251.7,20.13035853]
[1672945158999,2.99372069,1251.8,1251.7,20.13035853]
[1672945159615,2.99372069,1251.8,1251.7,28.11948853]
[1672945160063,3.05972069,1251.9,1251.7,45.1599561]
[1672945160247,0.066,1252.0,1251.8,9.76390611]
[1672945160462,2.99372069,1252.1,1251.9,40.52542531]
[1672945160784,2.99372069,1252.1,1252.0,3.98914951]
[1672945161124,3.90245203,1252.2,1252.0,28.42812177]
[1672945161125,3.30372986,1252.2,1252.0,28.42812177]
[1672945161286,0.24400917,1252.2,1252.0,31.52712177]
[1672945161706,0.24400917,1252.2,1252.1,26.52305226]
[1672945161914,0.24400917,1252.2,1252.1,31.13189444]
[1672945162531,3.23772986,1252.2,1252.1,23.14531444]
[1672945163111,0.24400917,1252.2,1252.1,15.15873444]
[1672945163335,0.24400917,1252.2,1252.1,23.14531444]
[1672945163685,0.24400917,1252.2,1252.1,31.13189444]
[1672945164843,0.24400917,1252.2,1252.1,35.12104395]
[1672945166168,0.24400917,1252.2,1252.1,36.57051596]
[1672945166317,0.24400917,1252.2,1252.1,44.55709596]
[1672945168469,0.24400917,1252.2,1252.1,36.57051596]
[1672945173570,8.22994917,1252.2,1252.1,6.05831419]
[1672945173925,16.21588917,1252.2,1252.1,1.54847201]
[1672945174116,16.21588917,1252.2,1252.1,1.44947201]
[1672945174117,8.22994917,1252.2,1252.1,1.44947201]
[1672945174514,0.24400917,1252.2,1252.1,1.44947201]
[1672945174725,0.24400917,1252.2,1252.1,17.42263201]
[1672945175054,0.24400917,1252.2,1252.1,25.50821201]
[1672945175309,0.24400917,1252.2,1252.1,17.52163201]
[1672945175672,0.24400917,1252.2,1252.1,1.54847201]
[1672945175928,0.24400917,1252.2,1252.1,1.44947201]
[1672945180666,8.22994917,1252.2,1252.1,1.44947201]
[1672945180873,16.21588917,1252.2,1252.1,1.44947201]
[1672945181085,24.20182917,1252.2,1252.1,1.44947201]
[1672945182314,16.21588917,1252.2,1252.1,1.44947201]
[1672945183050,24.20182917,1252.2,1252.1,1.44947201]
[1672945183261,27.19554986,1252.2,1252.1,1.44947201]
[1672945186401,31.16453448,1252.2,1252.1,1.44715621]
[1672945187235,23.17859448,1252.2,1252.1,1.44715621]
[1672945187440,31.16453448,1252.2,1252.1,1.44715621]
[1672945188359,23.17859448,1252.2,1252.1,1.44715621]
[1672945188715,31.16453448,1252.2,1252.1,1.44715621]
[1672945189385,15.19265448,1252.2,1252.1,1.44715621]
[1672945189710,23.17859448,1252.2,1252.1,1.44715621]
[1672945190072,15.19265448,1252.2,1252.1,1.44715621]
[1672945191702,7.20671448,1252.2,1252.1,1.44715621]
[1672945192170,31.16453448,1252.2,1252.1,1.44715621]
[1672945192494,23.17859448,1252.2,1252.1,1.44715621]
[1672945192938,31.16453448,1252.2,1252.1,1.44715621]
[1672945193573,23.17859448,1252.2,1252.1,1.44715621]
[1672945194491,15.19265448,1252.2,1252.1,1.44715621]
[1672945195121,12.19893379,1252.2,1252.1,1.44715621]
[1672945195327,20.18487379,1252.2,1252.1,1.44715621]
[1672945196210,12.19893379,1252.2,1252.1,1.44715621]
[1672945197073,20.18487379,1252.2,1252.1,1.44715621]
[1672945197224,23.77731665,1252.2,1252.1,1.44715621]
[1672945197854,39.74919665,1252.2,1252.1,1.44715621]
[1672945199174,40.34748419,1252.2,1252.1,1.44715621]
[1672945199955,32.36154419,1252.2,1252.1,1.44715621]
[1672945200434,24.37560419,1252.2,1252.1,1.44715621]
[1672945200605,20.18487379,1252.2,1252.1,1.44715621]
[1672945200797,24.37560419,1252.2,1252.1,1.44715621]
[1672945201008,32.36154419,1252.2,1252.1,1.44715621]
[1672945201221,28.17081379,1252.2,1252.1,1.44715621]
[1672945201467,32.36154419,1252.2,1252.1,1.44715621]
[1672945201681,24.37560419,1252.2,1252.1,1.44715621]
[1672945202091,32.36154419,1252.2,1252.1,1.44715621]
[1672945202488,24.37560419,1252.2,1252.1,1.44715621]
[1672945202700,8.40372419,1252.2,1252.1,1.44715621]
[1672945202912,4.21299379,1252.2,1252.1,1.44715621]
[1672945204599,11.82038535,1252.2,1252.1,1.44715621]
[1672945204812,3.83444535,1252.2,1252.1,1.44715621]
[1672945205167,0.24400917,1252.2,1252.1,1.44715621]
[1672945205484,8.22994917,1252.2,1252.1,1.44715621]
[1672945205799,20.40661957,1252.2,1252.1,1.44715621]
[1672945205956,32.06207587,1252.2,1252.1,1.44715621]
[1672945206378,24.07613587,1252.2,1252.1,1.44715621]
[1672945207064,16.09019587,1252.2,1252.1,1.44715621]
[1672945207374,24.07613587,1252.2,1252.1,1.44715621]
[1672945208898,32.06207587,1252.2,1252.1,1.44451132]
[1672945209098,24.07613587,1252.2,1252.1,1.44451132]
[1672945209310,32.06207587,1252.2,1252.1,1.44451132]
[1672945209556,35.85728547,1252.2,1252.1,1.44451132]
[1672945209786,27.87134547,1252.2,1252.1,1.44451132]
[1672945210122,32.87134547,1252.2,1252.1,1.44451132]
[1672945210261,45.81529282,1252.2,1252.1,1.44451132]
[1672945210466,46.89315207,1252.2,1252.1,1.44451132]
[1672945210785,46.89515207,1252.2,1252.1,1.44451132]
[1672945211002,46.89315207,1252.2,1252.1,1.44451132]
[1672945211239,46.88339253,1252.2,1252.1,1.32e-06]
[1672945211457,38.89745253,1252.2,1252.1,1.32e-06]
[1672945213568,46.88339253,1252.2,1252.1,1.32e-06]
[1672945213885,46.88217223,1252.2,1252.1,1.32e-06]
[1672945216073,41.93514472,1252.2,1252.1,1.32e-06]
[1672945216495,46.12110509,1252.2,1252.1,1.32e-06]
[1672945216722,46.12110431,1252.2,1252.1,1.32e-06]
[1672945216881,13.69878506,1252.2,1252.1,1.32e-06]
[1672945217089,21.08542506,1252.2,1252.1,1.32e-06]
[1672945217294,29.07136506,1252.2,1252.1,1.32e-06]
[1672945218850,21.08542506,1252.2,1252.1,1.32e-06]
[1672945219067,13.09948506,1252.2,1252.1,1.32e-06]
[1672945219382,21.08542506,1252.2,1252.1,1.32e-06]
[1672945219548,16.89946547,1252.2,1252.1,1.32e-06]
[1672945220195,20.48738984,1252.2,1252.1,1.32e-06]
[1672945220370,16.89946547,1252.2,1252.1,1.32e-06]
[1672945220805,12.50167856,1252.2,1252.1,15.97316132]
[1672945221063,8.83216226,1252.2,1252.1,24.05874132]
[1672945221225,8.83216226,1252.2,1252.1,0.09900132]
[1672945221446,11.81810226,1252.2,1252.1,1.32e-06]
[1672945222474,19.80404226,1252.2,1252.1,1.32e-06]
[1672945222616,23.89202703,1252.2,1252.1,1.32e-06]
[1672945222819,23.89202703,1252.2,1252.1,0.75351045]
[1672945223065,23.94202703,1252.2,1252.1,0.75351045]
[1672945223228,23.89202703,1252.2,1252.1,0.75351045]
[1672945223432,20.30002531,1252.2,1252.1,0.75351045]
[1672945224072,23.88853703,1252.2,1252.1,0.75351045]
[1672945224284,15.90259703,1252.2,1252.1,0.75351045]
[1672945225111,23.93853703,1252.2,1252.1,0.75351045]
[1672945225327,23.88853703,1252.2,1252.1,0.75351045]
[1672945225798,2.99028503,1252.2,1252.1,5.50965996]
[1672945225948,0.31721346,1252.3,1252.1,21.22330356]
[1672945226162,0.25121346,1252.3,1252.2,3.0]
[1672945226406,0.25121346,1252.3,1252.2,10.98594]
[1672945226638,0.25121346,1252.3,1252.2,11.08494]
[1672945226797,0.25121346,1252.3,1252.2,19.07088]
[1672945227006,0.25121346,1252.3,1252.2,22.250892]
[1672945227424,0.25121346,1252.3,1252.2,14.264952]
[1672945228482,0.25121346,1252.3,1252.2,22.250892]
[1672945229327,0.25121346,1252.3,1252.2,14.264952]
[1672945231060,0.25121346,1252.3,1252.2,6.279012]
[1672945231275,0.30863992,1252.4,1252.2,10.73723834]
[1672945231460,0.24263992,1252.4,1252.3,3.98914951]
[1672945231785,0.24263992,1252.4,1252.3,22.90358676]
[1672945231997,0.24263992,1252.4,1252.3,23.00258676]
[1672945233053,3.2285309,1252.4,1252.3,15.01728676]
[1672945233365,0.24263992,1252.4,1252.3,15.01728676]
[1672945233552,3.2285309,1252.4,1252.3,23.00258676]
[1672945233884,3.2285309,1252.4,1252.3,15.01728676]
[1672945234096,3.2285309,1252.4,1252.3,23.00258676]
[1672945234286,3.2285309,1252.4,1252.3,15.01728676]
[1672945234698,0.24263992,1252.4,1252.3,23.00258676]
[1672945235060,0.24263992,1252.4,1252.3,30.98788676]
[1672945235421,0.24263992,1252.4,1252.3,23.00258676]
[1672945235621,0.24263992,1252.4,1252.3,15.01728676]
[1672945235833,0.24263992,1252.4,1252.3,11.0843]
[1672945236249,3.2285309,1252.4,1252.3,27.0549]
[1672945236932,0.24263992,1252.4,1252.3,27.0549]
[1672945237512,0.24463992,1252.4,1252.3,27.0519]
[1672945237732,0.24263992,1252.4,1252.3,27.0549]
[1672945237999,3.2285309,1252.4,1252.3,27.0549]
[1672945238364,3.2285309,1252.4,1252.3,19.0696]
[1672945238609,3.2285309,1252.4,1252.3,16.0696]
[1672945239412,3.2285309,1252.4,1252.3,24.0549]
[1672945239899,3.2285309,1252.4,1252.3,16.0696]
[1672945241418,3.2285309,1252.4,1252.3,24.0549]
[1672945241895,3.2285309,1252.4,1252.3,8.0843]
[1672945242259,3.2285309,1252.4,1252.3,16.0696]
[1672945244291,3.2285309,1252.4,1252.3,24.0549]
[1672945244494,0.24263992,1252.4,1252.3,24.0549]
[1672945245090,0.24263992,1252.4,1252.3,16.0696]
[1672945246100,0.24263992,1252.4,1252.3,24.0549]
[1672945250267,0.24263992,1252.4,1252.3,16.0696]
[1672945250384,3.2285309,1252.4,1252.3,0.099]
[1672945250587,4.73196144,1252.4,1252.3,7.9853]
[1672945250797,3.2285309,1252.4,1252.3,8.0843]
[1672945251008,3.2285309,1252.4,1252.3,16.0696]
[1672945251382,3.2285309,1252.4,1252.3,8.0843]
[1672945251959,6.7285309,1252.4,1252.3,8.0843]
[1672945252426,3.2285309,1252.4,1252.3,8.0843]
[1672945252600,6.7285309,1252.4,1252.3,8.0819422]
[1672945252828,6.7285309,1252.4,1252.3,0.099]
[1672945252829,8.64848044,1252.4,1252.3,0.099]
[1672945253007,5.14848044,1252.4,1252.2,24.05565]
[1672945253961,8.64848044,1252.4,1252.2,24.05565]
[1672945254617,2.98589098,1252.3,1252.2,24.05565]
[1672945254960,2.98589098,1252.3,1252.2,27.05565]
[1672945257466,2.98589098,1252.3,1252.2,24.05565]
[1672945258519,2.98589098,1252.3,1252.2,16.06994]
[1672945260611,2.98589098,1252.3,1252.2,24.05588]
[1672945263854,3.58446889,1252.3,1252.2,24.05588]
[1672945266018,3.58446889,1252.3,1252.2,8.08432]
[1672945266270,3.58446889,1252.3,1252.2,16.07026]
[1672945266600,3.58446889,1252.3,1252.2,24.0562]
[1672945267234,3.58646889,1252.3,1252.2,24.0532]
[1672945267396,3.58646889,1252.3,1252.2,24.0562]
[1672945267397,3.58446889,1252.3,1252.2,24.0562]
[1672945268121,3.58446889,1252.3,1252.2,16.07026]
[1672945269327,3.58446889,1252.3,1252.2,36.61324713]
[1672945269497,3.89310881,1252.4,1252.2,36.61324713]
[1672945269707,3.82710881,1252.4,1252.2,36.61324713]
[1672945269945,3.51850881,1252.4,1252.3,3.98914951]
[1672945270146,2.99372085,1252.4,1252.3,10.25079517]
[1672945270398,2.99372085,1252.4,1252.3,26.32039517]
[1672945270593,2.99372085,1252.4,1252.3,26.76369207]
[1672945271371,2.99373816,1252.4,1252.3,26.76369207]
[1672945272479,4.18595959,1252.4,1252.3,26.76369207]
[1672945272648,0.30321557,1252.5,1252.3,34.74899207]
[1672945272857,2.99341865,1252.4,1252.3,34.74899207]
[1672945273058,4.48917516,1252.5,1252.3,34.74899207]
[1672945273270,0.23721557,1252.5,1252.3,34.74899207]
[1672945273481,4.18595959,1252.4,1252.3,34.74899207]
[1672945274262,0.30321557,1252.5,1252.3,34.74899207]
[1672945274263,4.48917516,1252.5,1252.3,34.74899207]
[1672945274435,4.18595959,1252.4,1252.3,34.30569517]
[1672945274652,4.48917516,1252.5,1252.3,34.30569517]
[1672945274856,4.42317516,1252.5,1252.3,34.30569517]